fUSD/lending_fUSD_20251224
["ID","MTS","AMOUNT","RATE_DAILY","PERIOD"]
[399660018,1766589048341,-500.0,0.00022784,2]
[399660019,1766589048351,-500.0,0.00022784,2]
[399660020,1766589048361,-500.0,0.00022784,2]
[399660021,1766589048371,-500.0,0.00022784,2]
[399660022,1766589048381,-500.0,0.00022784,2]
[399660023,1766589048390,-500.0,0.00022784,2]
[399660024,1766589048400,-500.0,0.00022784,2]
[399660025,1766589048410,-500.0,0.00022784,2]
[399660026,1766589048419,-500.0,0.00022784,2]
[399660027,1766589048429,-500.0,0.00022784,2]
[399660028,1766589048439,-500.0,0.00022784,2]
[399660029,1766589048448,-500.0,0.00022784,2]
[399660030,1766589048458,-500.0,0.00022784,2]
[399660031,1766589048468,-500.0,0.00022784,2]
[399660032,1766589048478,-500.0,0.00022784,2]
[399660033,1766589048488,-500.0,0.00022784,2]
[399660034,1766589048499,-500.0,0.00022784,2]
[399660035,1766589048508,-500.0,0.00022784,2]
[399660036,1766589048519,-500.0,0.00022784,2]
[399660037,1766589048529,-500.0,0.00022784,2]
[399660038,1766589048539,-500.0,0.00022784,2]
[399660039,1766589048551,-500.0,0.00022784,2]
[399660040,1766589048561,-500.0,0.00022784,2]
[399660041,1766589048571,-500.0,0.00022784,2]
[399660042,1766589048581,-500.0,0.00022784,2]
[399660043,1766589048592,-500.0,0.00022784,2]
[399660044,1766589048603,-500.0,0.00022784,2]
[399660045,1766589048613,-500.0,0.00022784,2]
[399660046,1766589048623,-500.0,0.00022784,2]
[399660047,1766589048633,-500.0,0.00022784,2]
[399660048,1766589048643,-500.0,0.00022784,2]
[399660049,1766589048652,-500.0,0.00022784,2]
[399660050,1766589048662,-500.0,0.00022784,2]
[399660051,1766589048672,-500.0,0.00022784,2]
[399660052,1766589048682,-500.0,0.00022784,2]
[399660053,1766589048693,-500.0,0.00022784,2]
[399660054,1766589048704,-500.0,0.00022784,2]
[399660055,1766589048714,-500.0,0.00022784,2]
[399660056,1766589048724,-500.0,0.00022784,2]
[399660057,1766589048734,-500.0,0.00022784,2]
[399660058,1766589048745,-500.0,0.00022784,2]
[399660059,1766589048755,-500.0,0.00022784,2]
[399660060,1766589048765,-500.0,0.00022784,2]
[399660061,1766589048775,-500.0,0.00022784,2]
[399660062,1766589048786,-151.35193963,0.00022799,2]
[399660063,1766589048798,-19768.0,0.000228,2]
[399660064,1766589048809,-166.77,0.00022841,2]
[399660065,1766589048818,-373.07297731,0.00022843,2]
[399660066,1766589048828,-320.74051982,0.00022843,2]
[399660067,1766589048838,-13274.1,0.00023028,2]
[399660068,1766589048848,-500.0,0.00023164,2]
[399660069,1766589048858,-2445.54471733,0.00023164,2]
[399660070,1766589048869,-1468.84874159,0.00023164,2]
[399660071,1766589048879,-2500.0,0.00023164,2]
[399660072,1766589048889,-2381.04120458,0.00023164,2]
[399660073,1766589048900,-471.92079505,0.00023164,2]
[399660074,1766589048910,-1496.61681738,0.00023164,2]
[399660075,1766589048920,-165.33,0.00023207,2]
[399660076,1766589048930,-3431.6302439,0.00023236,2]
[399660077,1766589048941,-2279.0,0.00023256,2]
[399660078,1766589048951,-200.0,0.0002338,2]
[399660079,1766589048961,-5526.0,0.000235,3]
[399660080,1766589048971,-150.2114992,0.00023673,2]
[399660081,1766589048981,-150.18672367,0.00023673,2]
[399660082,1766589048991,-870.052,0.00023712,4]
[399660083,1766589049001,-178.007,0.00023712,4]
[399660084,1766589049012,-648.87026142,0.00023712,2]
[399660085,1766589049022,-524.19,0.00023712,2]
[399660086,1766589049032,-266.49,0.000238,7]
[399660087,1766589049042,-912.0,0.00023823,2]
[399660088,1766589049053,-1198.0,0.00023823,2]
[399660089,1766589049063,-6533.0,0.00023842,2]
[399660090,1766589049074,-2430.0,0.00023842,2]
[399660091,1766589049084,-4807.0,0.00023842,2]
[399660092,1766589049095,-151.35193963,0.00023885,2]
[399660093,1766589049105,-7944.47542561,0.00023907,2]
[399660094,1766589049115,-21653.9252,0.00023998,2]
[399660095,1766589049125,-1000.0,0.00023998,2]
[399660096,1766589049140,-152.87,0.0002406,2]
[399660097,1766589049151,-150.0,0.00024098,2]
[399660098,1766589049161,-150.0,0.00024098,2]
[399660099,1766589049171,-150.0,0.00024098,2]
[399660100,1766589049182,-1609.0,0.00024098,2]
[399660101,1766589049192,-3458.0,0.00024098,2]
[399660102,1766589049202,-1326.0,0.00024098,2]
[399660103,1766589049213,-1263.0,0.00024098,2]
[399660104,1766589049223,-432.0,0.00024098,2]
[399660105,1766589049233,-386.87667747,0.00024212,2]
[399660106,1766589049243,-332.60791905,0.00024212,2]
[399660107,1766589049253,-5526.0,0.000243,5]
[399660108,1766589049263,-179.64,0.0002439,2]
[399660109,1766589049274,-25000.0,0.00024485,7]
[399660110,1766589049284,-253.65562761,0.00024703,2]
[399660111,1766589049294,-601.70354363,0.0002477,2]
[399660112,1766589049304,-500.0,0.00024799,2]
[399660113,1766589049314,-500.0,0.00024799,2]
[399660114,1766589049324,-500.0,0.00024799,2]
[399660115,1766589049334,-151833.53,0.000248,7]
[399660116,1766589049343,-389.79752753,0.000248,2]
[399660117,1766589049353,-5313.83161168,0.000248,2]
[399660118,1766589049363,-55990.306715,0.000248,2]
[399660119,1766589049373,-271.81,0.00024843,2]
[399660120,1766589049383,-151.0,0.000249,7]
[399660121,1766589049392,-151.0,0.000249,7]
[399660122,1766589049402,-151.0,0.000249,7]
[399660123,1766589049412,-151.0,0.000249,7]
[399660124,1766589049422,-151.0,0.000249,7]
[399660125,1766589049432,-151.0,0.000249,7]
[399660126,1766589049442,-151.0,0.000249,7]
[399660127,1766589049453,-151.0,0.000249,7]
[399660128,1766589049462,-151.0,0.000249,7]
[399660129,1766589049473,-688.914365,0.000249,2]
[399660130,1766589049482,-151.0,0.000249,7]
[399660131,1766589049492,-151.0,0.000249,7]
[399660132,1766589049503,-688.914365,0.000249,2]
[399660133,1766589049512,-151.0,0.000249,7]
[399660134,1766589049523,-688.914365,0.000249,2]
[399660135,1766589049533,-151.0,0.000249,7]
[399660136,1766589049542,-688.914365,0.000249,2]
[399660137,1766589049551,-151.0,0.000249,7]
[399660138,1766589049562,-151.0,0.000249,7]
[399660139,1766589049571,-151.0,0.000249,7]
[399660140,1766589049581,-151.0,0.000249,7]
[399660141,1766589049591,-151.0,0.000249,7]
[399660142,1766589049602,-151.0,0.000249,7]
[399660143,1766589049612,-151.0,0.000249,7]
[399660144,1766589049622,-151.0,0.000249,7]
[399660145,1766589049632,-151.0,0.000249,7]
[399660146,1766589049642,-261.497182,0.000249,7]
[399660147,1766589049651,-151.0,0.000249,7]
[399660148,1766589049662,-21925.4872446,0.000249,2]
[399660149,1766589049673,-197.442996,0.000249,7]
[399660150,1766589049683,-197.442996,0.000249,7]
[399660151,1766589049692,-197.442996,0.000249,7]
[399660152,1766589049702,-197.442996,0.000249,7]
[399660153,1766589049712,-151.0,0.000249,7]
[399660154,1766589049722,-685.135947,0.000249,7]
[399660155,1766589049731,-685.135947,0.000249,7]
[399660156,1766589049741,-685.135947,0.000249,7]
[399660157,1766589049751,-685.135947,0.000249,7]
[399660158,1766589049761,-151.0,0.000249,7]
[399660159,1766589049771,-151.0,0.000249,7]
[399660160,1766589049781,-204.069289,0.000249,7]
[399660161,1766589049791,-698.0,0.00024901,2]
[399660162,1766589049803,-400.0,0.0002497,2]
[399660163,1766589049814,-151.35193963,0.00024971,2]
[399660164,1766589049825,-500.0,0.00024999,2]
[399660165,1766589049836,-150.0,0.00025,2]
[399660166,1766589049846,-150.0,0.00025,2]
[399660167,1766589049856,-150.0,0.00025,2]
[399660168,1766589049866,-150.0,0.00025,2]
[399660169,1766589049876,-150.0,0.00025,2]
[399660170,1766589049886,-150.0,0.00025,2]
[399660171,1766589049896,-288.717,0.00025,2]
[399660172,1766589049907,-305.0,0.00025,2]
[399660173,1766589049916,-209.78759652,0.00025,120]
[399660174,1766589049926,-849.0,0.00025,2]
[399660175,1766589049936,-299.0,0.00025,2]
[399660176,1766589049946,-983.0,0.00025,2]
[399660177,1766589049956,-13274.1,0.00025025,2]
[399660178,1766589049966,-3431.6302439,0.00025144,2]
[399660179,1766589049976,-5000.0,0.0002558,2]
[399660180,1766589049987,-5000.0,0.0002558,2]
[399660181,1766589049997,-5000.0,0.0002558,2]
[399660182,1766589050008,-5000.0,0.0002558,2]
[399660183,1766589050018,-401.19111454,0.00025581,2]
[399660184,1766589050029,-344.91441206,0.00025581,2]
[399660185,1766589050039,-164.15376558,0.00025647,2]
[399660186,1766589050052,-7944.47542561,0.0002568,2]
[399660187,1766589050062,-150.0,0.00025746,2]
[399660188,1766589050073,-2903.80863836,0.00025746,2]
[399660189,1766589050085,-150.0,0.00025746,2]
[399660190,1766589050096,-671.20407632,0.00025746,2]
[399660191,1766589050106,-150.0,0.00025746,2]
[399660192,1766589050117,-18870.63954084,0.00025746,2]
[399660193,1766589050127,-266.49,0.00026,7]
[399660194,1766589050139,-151833.53,0.00026,7]
[399660195,1766589050151,-151.35193968,0.00026056,2]
[399660196,1766589050160,-800.0,0.0002608,10]
[399660197,1766589050171,-800.0,0.0002608,10]
[399660198,1766589050182,-800.0,0.0002608,10]
[399660199,1766589050192,-800.0,0.0002608,10]
[399660200,1766589050202,-253.65562761,0.00026721,2]
[399660201,1766589050215,-912.0,0.00026823,2]
[399660202,1766589050225,-1198.0,0.00026823,2]
[399660203,1766589050235,-265.60554081,0.00026825,2]
[399660204,1766589050244,-6533.0,0.00026842,2]
[399660205,1766589050254,-2430.0,0.00026842,2]
[399660206,1766589050264,-4807.0,0.00026842,2]
[399660207,1766589050274,-416.03518578,0.0002695,2]
[399660208,1766589050284,-170.14748725,0.0002695,2]
[399660209,1766589050296,-150.0,0.00027,2]
[399660210,1766589050306,-13274.1,0.00027021,2]
[399660211,1766589050316,-3431.6302439,0.00027052,2]
[399660212,1766589050326,-1609.0,0.00027098,2]
[399660213,1766589050336,-3458.0,0.00027098,2]
[399660214,1766589050346,-1326.0,0.00027098,2]
[399660215,1766589050355,-1263.0,0.00027098,2]
[399660216,1766589050365,-432.0,0.00027098,2]
[399660217,1766589050375,-1000.0,0.00027099,14]
[399660218,1766589050385,-1472.82,0.000271,14]
[399660219,1766589050395,-3666.24,0.00027123,2]
[399660220,1766589050406,-150.0,0.00027369,2]
[399660221,1766589050416,-1000.0,0.00027396,4]
[399660222,1766589050426,-1000.0,0.00027396,16]
[399660223,1766589050436,-1000.0,0.00027396,20]
[399660224,1766589050446,-151.0,0.00027397,2]
[399660225,1766589050456,-219.738126,0.00027397,7]
[399660226,1766589050466,-219.738126,0.00027397,7]
[399660227,1766589050476,-219.738126,0.00027397,7]
[399660228,1766589050486,-219.738126,0.00027397,7]
[399660229,1766589050496,-152.616568,0.00027397,7]
[399660230,1766589050506,-150.0,0.00027397,5]
[399660231,1766589050516,-549.8160661,0.00027397,5]
[399660232,1766589050526,-7944.47542561,0.00027454,2]
[399660233,1766589050535,-165.33,0.00027849,2]
[399660234,1766589050545,-250.0,0.00027945,5]
[399660235,1766589050555,-152.87,0.00028113,2]
[399660236,1766589050565,-431.42848765,0.00028319,2]
[399660237,1766589050693,-179.64,0.00028406,2]
[399660238,1766589050711,-350.3296444,0.00028493,5]
[399660239,1766589050721,-151833.53,0.000285,7]
[399660240,1766589050731,-253.65562761,0.0002874,2]
[399660241,1766589050741,-181.2,0.00028766,2]
[399660242,1766589050750,-151.0,0.00028766,2]
[399660243,1766589050761,-254.10874608,0.00028784,2]
[399660244,1766589050771,-500.0,0.00028795,2]
[399660245,1766589050782,-266.49,0.000288,7]
[399660246,1766589050791,-152.87,0.00028828,2]
[399660247,1766589050803,-26780.0,0.00028871,2]
[399660248,1766589050813,-3431.6302439,0.0002896,2]
[399660249,1766589050823,-13274.1,0.00029018,2]
[399660250,1766589050833,-181.2,0.00029032,2]
[399660251,1766589050843,-271.7600895,0.00029123,2]
[399660252,1766589050854,-203.59064575,0.0002916,2]
[399660253,1766589050864,-150.0,0.00029198,2]
[399660254,1766589050874,-7944.47542561,0.00029228,2]
[399660255,1766589050884,-1036.98669577,0.00029233,2]
[399660256,1766589050894,-150.0,0.0002927,2]
[399660257,1766589050904,-181.2,0.00029298,2]
[399660258,1766589050914,-1117.15871945,0.00029342,2]
[399660259,1766589050923,-203.59064575,0.00029354,2]
[399660260,1766589050933,-150.0,0.00029355,2]
[399660261,1766589050942,-500.0,0.000294,7]
[399660262,1766589050952,-500.0,0.000294,7]
[399660263,1766589050963,-500.0,0.000294,7]
[399660264,1766589050972,-455.7,0.000294,7]
[399660265,1766589050982,-1000.0,0.00029446,2]
[399660266,1766589050992,-150.0,0.00029473,2]
[399660267,1766589051002,-1000.0,0.00029476,2]
[399660268,1766589051012,-1000.0,0.00029482,2]
[399660269,1766589051023,-300.0,0.00029525,2]
[399660270,1766589051033,-300.0,0.00029544,2]
[399660271,1766589051044,-150.0,0.00029564,7]
[399660272,1766589051055,-150.0,0.00029578,2]
[399660273,1766589051065,-1000.0,0.00029614,2]
[399660274,1766589051075,-300.0,0.00029617,2]
[399660275,1766589051084,-1000.0,0.00029619,2]
[399660276,1766589051094,-1000.0,0.00029624,2]
[399660277,1766589051109,-150.0,0.00029638,2]
[399660278,1766589051120,-300.0,0.00029649,2]
[399660279,1766589051131,-1000.0,0.00029686,2]
[399660280,1766589051144,-447.3913417,0.00029688,2]
[399660281,1766589051155,-300.0,0.0002971,2]
[399660282,1766589051165,-150.0,0.00029731,2]
[399660283,1766589051176,-150.0,0.00029749,2]
[399660284,1766589051186,-300.0,0.00029755,2]
[399660285,1766589051197,-150.0,0.00029759,2]
[399660286,1766589051207,-203.59064575,0.00029763,2]
[399660287,1766589051218,-1000.0,0.00029764,2]
[399660288,1766589051228,-210.31131003,0.00029781,2]
[399660289,1766589051238,-300.0,0.00029786,2]
[399660290,1766589051248,-300.0,0.00029788,2]
[399660291,1766589051258,-300.0,0.0002981,2]
[399660292,1766589051269,-300.0,0.00029812,2]
[399660293,1766589051278,-300.0,0.00029817,2]
[399660294,1766589051288,-150.0,0.00029821,2]
[399660295,1766589051298,-300.0,0.00029822,2]
[399660296,1766589051308,-912.0,0.00029823,2]
[399660297,1766589051318,-1198.0,0.00029823,2]
[399660298,1766589051328,-300.0,0.00029828,2]
[399660299,1766589051338,-1000.0,0.00029837,2]
[399660300,1766589051347,-1000.0,0.0002984,2]
[399660301,1766589051358,-1000.0,0.00029841,2]
[399660302,1766589051368,-6533.0,0.00029842,2]
[399660303,1766589051378,-2430.0,0.00029842,2]
[399660304,1766589051388,-4807.0,0.00029842,2]
[399660305,1766589051398,-300.0,0.00029843,2]
[399660306,1766589051409,-3349.6229672,0.00029846,2]
[399660307,1766589051420,-225516.0010199,0.00029846,2]
[399660308,1766589051430,-112889.3698461,0.00029846,2]
[399660309,1766589051439,-151.0,0.00029846,7]
[399660310,1766589051449,-151.0,0.00029846,7]
[399660311,1766589051460,-150.0,0.00029854,2]
[399660312,1766589051470,-10000.0,0.00029899,2]
[399660313,1766589051479,-16447.01983763,0.000299,2]
[399660314,1766589051489,-457.1069543,0.000299,2]
[399660315,1766589051498,-150.0,0.00029903,2]
[399660316,1766589051508,-14466.4872293,0.0002991,2]
[399660317,1766589051519,-1000.0,0.00029915,2]
[399660318,1766589051529,-300.0,0.00029919,2]
[399660319,1766589051539,-1000.0,0.00029923,2]
[399660320,1766589051549,-1000.0,0.00029928,2]
[399660321,1766589051559,-150.0,0.0002994,2]
[399660322,1766589051569,-1000.0,0.00029941,2]
[399660323,1766589051579,-300.0,0.00029946,2]
[399660324,1766589051589,-1000.0,0.00029951,2]
[399660325,1766589051599,-1000.0,0.00029962,2]
[399660326,1766589051609,-1000.0,0.00029975,2]
[399660327,1766589051619,-1000.0,0.00029975,2]
[399660328,1766589051629,-300.0,0.0002999,2]
[399660329,1766589051639,-300.0,0.00029994,2]
[399660330,1766589051648,-578.20924308,0.00029999,5]
[399660331,1766589051659,-599.60298507,0.00029999,5]
[399660332,1766589051668,-621.78829552,0.00029999,5]
[399660333,1766589051678,-644.79446246,0.00029999,5]
[399660334,1766589051688,-668.65185757,0.00029999,5]
[399660335,1766589051698,-693.3919763,0.00029999,5]
[399660336,1766589051707,-719.04747942,0.00029999,5]
[399660337,1766589051718,-745.65223616,0.00029999,5]
[399660338,1766589051727,-582.50271401,0.00029999,5]
[399660339,1766589051737,-1000.0,0.00029999,5]
[399660340,1766589051747,-1000.0,0.00029999,3]
[399660341,1766589051756,-1000.0,0.00029999,12]
[399660342,1766589051766,-1000.0,0.00029999,22]
[399660343,1766589051777,-150.0,0.0003,2]
[399660344,1766589051786,-151833.53,0.0003,7]
[399660345,1766589051795,-296.190699,0.0003,7]
[399660346,1766589051805,-151.0,0.0003,7]
[399660347,1766589051816,-219.738126,0.0003,7]
[399660348,1766589051826,-219.738126,0.0003,7]
[399660349,1766589051836,-219.738126,0.0003,7]
[399660350,1766589051846,-219.738126,0.0003,7]
[399660351,1766589051856,-151.0,0.0003,7]
[399660352,1766589051868,-151.0,0.0003,7]
[399660353,1766589051878,-151.0,0.0003,7]
[399660354,1766589051888,-191.443918,0.0003,7]
[399660355,1766589051899,-151.0,0.0003,7]
[399660356,1766589051908,-151.0,0.0003,7]
[399660357,1766589051918,-688.914365,0.0003,2]
[399660358,1766589051928,-151.0,0.0003,7]
[399660359,1766589051938,-174.08903,0.0003,7]
[399660360,1766589051948,-688.914365,0.0003,2]
[399660361,1766589051958,-151.0,0.0003,7]
[399660362,1766589051968,-285.27328,0.0003,7]
[399660363,1766589051978,-688.914365,0.0003,2]
[399660364,1766589051988,-688.914365,0.0003,2]
[399660365,1766589051998,-151.0,0.0003,7]
[399660366,1766589052008,-151.0,0.0003,7]
[399660367,1766589052018,-151.0,0.0003,7]
[399660368,1766589052029,-151.0,0.0003,7]
[399660369,1766589052039,-151.0,0.0003,7]
[399660370,1766589052049,-151.0,0.0003,7]
[399660371,1766589052059,-151.0,0.0003,7]
[399660372,1766589052069,-167.3668,0.0003,7]
[399660373,1766589052079,-151.0,0.0003,7]
[399660374,1766589052089,-255.307319,0.0003,7]
[399660375,1766589052100,-197.442996,0.0003,7]
[399660376,1766589052110,-197.442996,0.0003,7]
[399660377,1766589052120,-197.442996,0.0003,7]
[399660378,1766589052132,-197.442996,0.0003,7]
[399660379,1766589052144,-151.0,0.0003,7]
[399660380,1766589052154,-685.135947,0.0003,7]
[399660381,1766589052164,-685.135947,0.0003,7]
[399660382,1766589052175,-685.135947,0.0003,7]
[399660383,1766589052186,-685.135947,0.0003,7]
[399660384,1766589052195,-151.0,0.0003,7]
[399660385,1766589052206,-151.0,0.0003,7]
[399660386,1766589052215,-1000.0,0.00030004,2]
[399660387,1766589052225,-300.0,0.00030009,2]
[399660388,1766589052235,-203.59064578,0.00030022,2]
[399660389,1766589052245,-300.0,0.00030025,2]
[399660390,1766589052254,-1000.0,0.00030026,2]
[399660391,1766589052264,-300.0,0.00030034,2]
[399660392,1766589052274,-1000.0,0.00030048,2]
[399660393,1766589052284,-1000.0,0.0003005,2]
[399660394,1766589052294,-300.0,0.00030052,2]
[399660395,1766589052304,-300.0,0.0003006,2]
[399660396,1766589052314,-300.0,0.00030064,2]
[399660397,1766589052325,-164.15376558,0.00030064,2]
[399660398,1766589052335,-300.0,0.00030067,2]
[399660399,1766589052344,-300.0,0.00030073,2]
[399660400,1766589052354,-1000.0,0.00030078,2]
[399660401,1766589052364,-1000.0,0.00030093,2]
[399660402,1766589052374,-1609.0,0.00030098,2]
[399660403,1766589052385,-3458.0,0.00030098,2]
[399660404,1766589052395,-1326.0,0.00030098,2]
[399660405,1766589052405,-1263.0,0.00030098,2]
[399660406,1766589052415,-432.0,0.00030098,2]
[399660407,1766589052426,-1113.30940197,0.000301,2]
[399660408,1766589052436,-186.82,0.000301,22]
[399660409,1766589052446,-150.0,0.00030112,2]
[399660410,1766589052456,-1000.0,0.00030123,2]
[399660411,1766589052466,-150.0,0.00030127,2]
[399660412,1766589052476,-300.0,0.00030133,2]
[399660413,1766589052486,-151.0,0.00030135,2]
[399660414,1766589052495,-1000.0,0.00030136,2]
[399660415,1766589052505,-300.0,0.00030138,2]
[399660416,1766589052515,-150.0,0.00030139,2]
[399660417,1766589052525,-1000.0,0.00030139,2]
[399660418,1766589052535,-300.0,0.00030142,2]
[399660419,1766589052545,-1000.0,0.00030159,2]
[399660420,1766589052555,-1000.0,0.00030163,2]
[399660421,1766589052566,-300.0,0.00030171,2]
[399660422,1766589052575,-332.0,0.00030172,30]
[399660423,1766589052586,-1000.0,0.00030172,2]
[399660424,1766589052595,-1081.29595333,0.00030172,2]
[399660425,1766589052605,-300.0,0.00030172,2]
[399660426,1766589052615,-1000.0,0.00030185,2]
[399660427,1766589052625,-1000.0,0.00030187,2]
[399660428,1766589052635,-150.0,0.0003019,2]
[399660429,1766589052646,-254.13060141,0.00030199,2]
[399660430,1766589052656,-1000.0,0.00030199,30]
[399660431,1766589052666,-150.0,0.00030208,2]
[399660432,1766589052676,-1000.0,0.00030217,2]
[399660433,1766589052685,-1000.0,0.00030248,2]
[399660434,1766589052695,-211.90100682,0.00030252,5]
[399660435,1766589052706,-300.0,0.00030257,2]
[399660436,1766589052716,-300.0,0.00030259,2]
[399660437,1766589052726,-150.0,0.00030278,2]
[399660438,1766589052736,-300.0,0.00030281,2]
[399660439,1766589052746,-797.40688775,0.00030296,30]
[399660440,1766589052756,-150.0,0.00030335,2]
[399660441,1766589052766,-1000.0,0.0003034,2]
[399660442,1766589052776,-1000.0,0.00030348,2]
[399660443,1766589052786,-150.0,0.00030363,2]
[399660444,1766589052796,-1000.0,0.0003037,2]
[399660445,1766589052807,-400.0,0.0003037,2]
[399660446,1766589052817,-300.0,0.00030371,2]
[399660447,1766589052827,-300.0,0.00030374,2]
[399660448,1766589052838,-300.0,0.00030394,2]
[399660449,1766589052847,-300.242253,0.00030398,47]
[399660450,1766589053133,-1000.0,0.00030399,7]
[399660451,1766589053211,-150.0,0.000304,3]
[399660452,1766589053223,-200.0,0.000304,2]
[399660453,1766589053235,-200.0,0.000304,2]
[399660454,1766589053246,-200.0,0.000304,2]
[399660455,1766589053256,-150.0,0.000304,2]
[399660456,1766589053267,-625.76343979,0.000304,2]
[399660457,1766589053278,-440.13378286,0.000304,2]
[399660458,1766589053289,-200.0,0.000304,2]
[399660459,1766589053301,-1675.35,0.0003057,30]
[399660460,1766589053312,-200.0,0.00030704,2]
[399660461,1766589053323,-200.0,0.00030704,2]
[399660462,1766589053334,-200.0,0.00030704,2]
[399660463,1766589053345,-200.0,0.00030704,2]
[399660464,1766589053355,-253.65562761,0.00030758,2]
[399660465,1766589053366,-152.0,0.00030798,3]
[399660466,1766589053376,-2597.56135515,0.0003084,2]
[399660467,1766589053385,-209.0,0.0003084,30]
[399660468,1766589053395,-3431.6302439,0.00030868,2]
[399660469,1766589053405,-1000.0,0.000309,2]
[399660470,1766589053416,-78567.27691245,0.0003095,2]
[399660471,1766589053426,-250.0,0.00031,30]
[399660472,1766589053436,-2208.88,0.00031,30]
[399660473,1766589053446,-1000.0,0.00031,12]
[399660474,1766589053456,-600.0,0.00031,2]
[399660475,1766589053467,-1000.0,0.00031,2]
[399660476,1766589053478,-222.4,0.00031,4]
[399660477,1766589053488,-7944.47542561,0.00031002,2]
[399660478,1766589053499,-200.0,0.00031011,2]
[399660479,1766589053509,-200.0,0.00031011,2]
[399660480,1766589053519,-200.0,0.00031011,2]
[399660481,1766589053528,-13274.1,0.00031014,2]
[399660482,1766589053539,-463.94482134,0.00031057,2]
[399660483,1766589053549,-200.0,0.00031321,2]
[399660484,1766589053559,-200.0,0.00031321,2]
[399660485,1766589053569,-150.0,0.000314,5]
[399660486,1766589053579,-19589.39250759,0.0003143,4]
[399660487,1766589053589,-221.19143663,0.00031504,2]
[399660488,1766589053599,-150.0,0.00031607,2]
[399660489,1766589053609,-150.0,0.00031607,2]
[399660490,1766589053619,-150.0,0.00031607,2]
[399660491,1766589053629,-150.0,0.00031607,2]
[399660492,1766589053639,-200.0,0.00031634,2]
[399660493,1766589053648,-200.0,0.00031634,2]
[399660494,1766589053659,-389.79752751,0.0003185,2]
[399660495,1766589053669,-5313.83161166,0.0003185,2]
[399660496,1766589053679,-300.0,0.00032,30]
[399660497,1766589053689,-1000.0,0.00032,12]
[399660498,1766589053699,-5100.0,0.00032,7]
[399660499,1766589053709,-1500.0,0.00032,2]
[399660500,1766589053719,-1633.02,0.00032,2]
[399660501,1766589053729,-155.0,0.00032,14]
[399660502,1766589053739,-152.0,0.00032029,4]
[399660503,1766589053749,-150.32462202,0.000322,5]
[399660504,1766589053759,-2314.16,0.000323,8]
[399660505,1766589053769,-10275.6,0.000323,8]
[399660506,1766589053780,-889.18421964,0.000323,2]
[399660507,1766589053789,-151.0,0.0003238,7]
[399660508,1766589053799,-200.0,0.000324,7]
[399660509,1766589053810,-291.49229834,0.00032426,2]
[399660510,1766589053820,-150.0,0.00032502,2]
[399660511,1766589053829,-266.49,0.000326,7]
[399660512,1766589053839,-4930.85121663,0.000327,7]
[399660513,1766589053850,-160.37419797,0.00032776,2]
[399660514,1766589053860,-151.0,0.00032776,31]
[399660515,1766589053871,-151.0,0.00032776,31]
[399660516,1766589053882,-151.0,0.00032776,31]
[399660517,1766589053893,-151.0,0.00032776,31]